[Event "Vastgota Open 2023"]
[Site "Skara stadshotell, Jarnvagsgatan 5, Skara, Sweden"]
[Date "2023.02.19"]
[Round "7.5"]
[White "Rasti, Arvin"]
[Black "Kucuksari, Kaan"]
[Result "0-1"]
[TimeControl "15 minutes + 5 seconds per move from move one (Round 1 - 2) / 30 minutes + 10 seconds per move from move one (Round 3 - 9)"]
[BlackTitle "IM"]
[WhiteFideId "1741160"]
[BlackFideId "6380166"]
[WhiteElo "2179"]
[BlackElo "2380"]

1. e4 {[%clk 00:30:17]} {[%emt 00:00:03]} c5 {[%clk 00:30:19]} {[%emt
00:00:02]} 2. c3 {[%clk 00:30:20]} {[%emt 00:00:07]} d5 {[%clk 00:30:03]}
{[%emt 00:00:26]} 3. exd5 {[%clk 00:30:28]} {[%emt 00:00:02]} Qxd5 {[%clk
00:30:11]} {[%emt 00:00:02]} 4. d4 {[%clk 00:30:35]} {[%emt 00:00:02]} g6
{[%clk 00:30:18]} {[%emt 00:00:04]} 5. Nf3 {[%clk 00:30:36]} {[%emt 00:00:09]}
Bg7 {[%clk 00:30:16]} {[%emt 00:00:11]} 6. Na3 {[%clk 00:30:20]} {[%emt
00:00:27]} cxd4 {[%clk 00:29:54]} {[%emt 00:00:32]} 7. Bc4 {[%clk 00:30:18]}
{[%emt 00:00:11]} Qe4+ {[%clk 00:28:08]} {[%emt 00:01:56]} 8. Be3 {[%clk
00:30:11]} {[%emt 00:00:18]} Nh6 {[%clk 00:27:59]} {[%emt 00:00:18]} 9. cxd4
{[%clk 00:30:02]} {[%emt 00:00:20]} O-O {[%clk 00:27:01]} {[%emt 00:01:08]} 10.
O-O {[%clk 00:28:23]} {[%emt 00:01:48]} Bg4 {[%clk 00:20:29]} {[%emt 00:06:43]}
11. Re1 {[%clk 00:27:37]} {[%emt 00:00:56]} Bxf3 {[%clk 00:17:21]} {[%emt
00:03:18]} 12. Bxh6 {[%clk 00:26:56]} {[%emt 00:00:51]} Bxh6 {[%clk 00:17:06]}
{[%emt 00:00:25]} 13. Rxe4 {[%clk 00:27:03]} {[%emt 00:00:02]} Bxd1 {[%clk
00:17:14]} {[%emt 00:00:02]} 14. Rxd1 {[%clk 00:27:11]} {[%emt 00:00:02]} Bg5
{[%clk 00:16:53]} {[%emt 00:00:31]} 15. Re5 {[%clk 00:26:23]} {[%emt 00:00:59]}
Bf6 {[%clk 00:16:58]} {[%emt 00:00:04]} 16. Rb5 {[%clk 00:26:31]} {[%emt
00:00:02]} Nc6 {[%clk 00:16:52]} {[%emt 00:00:17]} 17. d5 {[%clk 00:26:07]}
{[%emt 00:00:34]} Nd8 {[%clk 00:16:27]} {[%emt 00:00:34]} 18. Nc2 {[%clk
00:24:59]} {[%emt 00:01:18]} Be5 {[%clk 00:15:16]} {[%emt 00:01:22]} 19. Ne3
{[%clk 00:23:21]} {[%emt 00:01:48]} a6 {[%clk 00:14:49]} {[%emt 00:00:37]} 20.
Rb6 {[%clk 00:23:01]} {[%emt 00:00:30]} Bc7 {[%clk 00:14:51]} {[%emt 00:00:08]}
21. Rb3 {[%clk 00:23:04]} {[%emt 00:00:07]} b5 {[%clk 00:14:55]} {[%emt
00:00:06]} 22. Be2 {[%clk 00:23:10]} {[%emt 00:00:03]} Bd6 {[%clk 00:13:27]}
{[%emt 00:01:38]} 23. a4 {[%clk 00:20:46]} {[%emt 00:02:35]} bxa4 {[%clk
00:13:24]} {[%emt 00:00:13]} 24. Rb6 {[%clk 00:20:54]} {[%emt 00:00:01]} Bc7
{[%clk 00:09:03]} {[%emt 00:04:32]} 25. Rxa6 {[%clk 00:20:07]} {[%emt
00:00:57]} Nb7 {[%clk 00:09:12]} 26. Rc1 {[%clk 00:16:46]} {[%emt 00:03:31]}
Be5 {[%clk 00:07:23]} {[%emt 00:01:59]} 27. Rc2 {[%clk 00:15:06]} {[%emt
00:01:50]} Nd6 {[%clk 00:05:30]} {[%emt 00:02:03]} 28. Rac6 {[%clk 00:13:04]}
{[%emt 00:02:11]} Rfb8 {[%clk 00:05:24]} {[%emt 00:00:16]} 29. Nd1 {[%clk
00:13:13]} {[%emt 00:00:02]} Ra5 {[%clk 00:02:10]} {[%emt 00:03:24]} 30. Ra6
{[%clk 00:08:22]} {[%emt 00:05:01]} Rxd5 {[%clk 00:00:28]} {[%emt 00:01:52]} 31.
Rxa4 {[%clk 00:08:21]} {[%emt 00:00:11]} Nf5 {[%clk 00:00:33]} {[%emt
00:00:05]} 32. Rac4 {[%clk 00:07:03]} {[%emt 00:01:27]} Nd4 {[%clk 00:00:32]}
{[%emt 00:00:11]} 33. Rc8+ {[%clk 00:07:12]} {[%emt 00:00:01]} Kg7 {[%clk
00:00:16]} {[%emt 00:00:27]} 34. Rxb8 {[%clk 00:06:31]} {[%emt 00:00:51]} Bxb8
{[%clk 00:00:13]} {[%emt 00:00:13]} 35. Nc3 {[%clk 00:06:21]} {[%emt 00:00:20]}
Ra5 {[%clk 00:00:15]} {[%emt 00:00:08]} 36. Rc1 {[%clk 00:06:13]} {[%emt
00:00:18]} Be5 {[%clk 00:00:16]} {[%emt 00:00:09]} 37. Bf1 {[%clk 00:06:02]}
{[%emt 00:00:20]} Ra8 {[%clk 00:00:19]} {[%emt 00:00:07]} 38. Re1 {[%clk
00:06:07]} {[%emt 00:00:05]} Bd6 {[%clk 00:00:16]} {[%emt 00:00:14]} 39. h3
{[%clk 00:05:20]} {[%emt 00:00:57]} Rb8 {[%clk 00:00:24]} {[%emt 00:00:02]} 40.
Rd1 {[%clk 00:05:21]} {[%emt 00:00:09]} Be5 {[%clk 00:00:29]} {[%emt 00:00:05]}
41. Rd2 {[%clk 00:05:07]} {[%emt 00:00:23]} f5 {[%clk 00:00:35]} {[%emt
00:00:05]} 42. Nd5 {[%clk 00:03:42]} {[%emt 00:01:35]} e6 {[%clk 00:00:38]}
{[%emt 00:00:07]} 43. f4 {[%clk 00:03:48]} {[%emt 00:00:04]} Bd6 {[%clk
00:00:41]} {[%emt 00:00:07]} 44. b4 {[%clk 00:01:43]} {[%emt 00:02:15]} Nb3
{[%clk 00:00:15]} {[%emt 00:00:35]} 45. Rd3 {[%clk 00:01:25]} {[%emt 00:00:28]}
Nc1 {[%clk 00:00:17]} {[%emt 00:00:08]} 46. Rd1 {[%clk 00:01:13]} {[%emt
00:00:22]} exd5 {[%clk 00:00:18]} {[%emt 00:00:10]} 47. Rxc1 {[%clk 00:01:21]}
{[%emt 00:00:02]} Bxf4 {[%clk 00:00:16]} {[%emt 00:00:11]} 48. Rd1 {[%clk
00:01:30]} Be3+ {[%clk 00:00:17]} {[%emt 00:00:10]} 49. Kh2 {[%clk 00:01:33]}
{[%emt 00:00:07]} Rxb4 {[%clk 00:00:13]} {[%emt 00:00:14]} 50. Rxd5 {[%clk
00:01:38]} {[%emt 00:00:05]} Rb1 {[%clk 00:00:19]} {[%emt 00:00:04]} 51. Bc4
{[%clk 00:01:33]} {[%emt 00:00:15]} Bf4+ {[%clk 00:00:24]} {[%emt 00:00:05]} 52.
g3 {[%clk 00:01:35]} {[%emt 00:00:08]} Rb2+ {[%clk 00:00:31]} {[%emt 00:00:01]}
53. Kg1 {[%clk 00:01:38]} {[%emt 00:00:08]} Bxg3 {[%clk 00:00:40]} {[%emt
00:00:02]} 54. Rd7+ {[%clk 00:01:47]} {[%emt 00:00:01]} Kh6 {[%clk 00:00:38]}
{[%emt 00:00:12]} 55. Bg8 {[%clk 00:01:51]} {[%emt 00:00:06]} f4 {[%clk
00:00:23]} {[%emt 00:00:25]} 56. Rxh7+ {[%clk 00:01:54]} {[%emt 00:00:07]} Kg5
{[%clk 00:00:32]} {[%emt 00:00:01]} 57. Bd5 {[%clk 00:01:34]} {[%emt 00:00:29]}
Rd2 {[%clk 00:00:41]} {[%emt 00:00:02]} 58. Bf3 {[%clk 00:01:35]} {[%emt
00:00:09]} Rf2 {[%clk 00:00:42]} {[%emt 00:00:08]} 59. Bd5 {[%clk 00:01:30]}
{[%emt 00:00:15]} Rd2 {[%clk 00:00:22]} {[%emt 00:00:31]} 60. Bf3 {[%clk
00:01:37]} {[%emt 00:00:02]} Bf2+ {[%clk 00:00:31]} {[%emt 00:00:02]} 61. Kf1
{[%clk 00:01:26]} {[%emt 00:00:21]} Be3 {[%clk 00:00:40]} {[%emt 00:00:01]} 62.
Be4 {[%clk 00:01:34]} {[%emt 00:00:02]} f3 {[%clk 00:00:28]} {[%emt 00:00:21]}
63. Bxf3 {[%clk 00:00:35]} {[%emt 00:01:09]} Rf2+ {[%clk 00:00:37]} 64. Ke1
{[%clk 00:00:45]} Rxf3 {[%clk 00:00:46]} {[%emt 00:00:02]} 65. Ke2 {[%clk
00:00:54]} Rg3 {[%clk 00:00:55]} {[%emt 00:00:01]} 66. h4+ {[%clk 00:01:03]}
Kg4 {[%clk 00:00:39]} {[%emt 00:00:26]} 0-1

[Event "Vastgota Open 2023"]
[Site "Skara stadshotell, Jarnvagsgatan 5, Skara, Sweden"]
[Date "2023.02.19"]
[Round "7.6"]
[White "Kockum, Anton Frisk"]
[Black "Andersson, Fredrik"]
[Result "1/2-1/2"]
[TimeControl "15 minutes + 5 seconds per move from move one (Round 1 - 2) / 30 minutes + 10 seconds per move from move one (Round 3 - 9)"]
[WhiteTitle "FM"]
[BlackTitle "FM"]
[WhiteFideId "1709143"]
[BlackFideId "1706187"]
[WhiteElo "2367"]
[BlackElo "2194"]

1. d4 {[%clk 00:30:19]} d5 {[%clk 00:30:13]} {[%emt 00:00:08]} 2. c4 {[%clk
00:30:23]} {[%emt 00:00:06]} e6 {[%clk 00:30:20]} {[%emt 00:00:04]} 3. Nf3
{[%clk 00:30:30]} {[%emt 00:00:02]} Nf6 {[%clk 00:30:27]} {[%emt 00:00:03]} 4.
Nc3 {[%clk 00:30:38]} {[%emt 00:00:02]} Bb4 {[%clk 00:30:31]} {[%emt 00:00:07]}
5. Bd2 {[%clk 00:30:36]} {[%emt 00:00:11]} O-O {[%clk 00:29:36]} {[%emt
00:01:05]} 6. e3 {[%clk 00:30:40]} {[%emt 00:00:06]} b6 {[%clk 00:26:40]}
{[%emt 00:03:06]} 7. cxd5 {[%clk 00:29:07]} {[%emt 00:01:43]} exd5 {[%clk
00:26:04]} {[%emt 00:00:45]} 8. Ne5 {[%clk 00:27:40]} {[%emt 00:01:37]} Bb7
{[%clk 00:23:53]} {[%emt 00:02:21]} 9. Bd3 {[%clk 00:27:18]} {[%emt 00:00:31]}
Nbd7 {[%clk 00:22:58]} {[%emt 00:01:06]} 10. f4 {[%clk 00:26:52]} {[%emt
00:00:36]} Bxc3 {[%clk 00:20:02]} {[%emt 00:03:06]} 11. bxc3 {[%clk 00:26:56]}
{[%emt 00:00:06]} Ne4 {[%clk 00:19:58]} {[%emt 00:00:14]} 12. O-O {[%clk
00:26:40]} {[%emt 00:00:26]} Qe7 {[%clk 00:17:49]} {[%emt 00:02:19]} 13. Be1
{[%clk 00:22:35]} {[%emt 00:04:16]} f6 {[%clk 00:16:47]} {[%emt 00:01:12]} 14.
Nxd7 {[%clk 00:18:33]} {[%emt 00:04:13]} Qxd7 {[%clk 00:16:54]} {[%emt
00:00:02]} 15. a4 {[%clk 00:18:26]} {[%emt 00:00:17]} Rfe8 {[%clk 00:15:51]}
{[%emt 00:01:13]} 16. a5 {[%clk 00:17:12]} {[%emt 00:01:24]} Bc6 {[%clk
00:15:05]} {[%emt 00:00:55]} 17. Qb3 {[%clk 00:14:34]} {[%emt 00:02:49]} Kh8
{[%clk 00:15:01]} {[%emt 00:00:14]} 18. Rf3 {[%clk 00:13:21]} {[%emt 00:01:22]}
Re7 {[%clk 00:13:47]} {[%emt 00:01:25]} 19. Rh3 {[%clk 00:12:34]} {[%emt
00:00:57]} f5 {[%clk 00:11:33]} {[%emt 00:02:24]} 20. c4 {[%clk 00:09:50]}
{[%emt 00:02:53]} Rae8 {[%clk 00:10:03]} {[%emt 00:01:40]} 21. axb6 {[%clk
00:09:33]} {[%emt 00:00:29]} axb6 {[%clk 00:10:08]} {[%emt 00:00:05]} 22. Bb4
{[%clk 00:09:09]} {[%emt 00:00:34]} dxc4 {[%clk 00:10:04]} {[%emt 00:00:13]} 23.
Bxc4 {[%clk 00:09:09]} {[%emt 00:00:10]} Nd6 {[%clk 00:10:09]} {[%emt
00:00:04]} 24. Bd5 {[%clk 00:04:58]} {[%emt 00:04:22]} h6 {[%clk 00:07:47]}
{[%emt 00:02:32]} 25. Bxd6 {[%clk 00:01:32]} {[%emt 00:03:35]} Qxd6 {[%clk
00:07:48]} {[%emt 00:00:09]} 26. Bxc6 {[%clk 00:01:28]} {[%emt 00:00:14]} Qxc6
{[%clk 00:07:54]} {[%emt 00:00:05]} 1/2-1/2

[Event "Vastgota Open 2023"]
[Site "Skara stadshotell, Jarnvagsgatan 5, Skara, Sweden"]
[Date "2023.02.19"]
[Round "7.7"]
[White "Wengholm, Anders"]
[Black "Silseth, Simon"]
[Result "1/2-1/2"]
[TimeControl "15 minutes + 5 seconds per move from move one (Round 1 - 2) / 30 minutes + 10 seconds per move from move one (Round 3 - 9)"]
[BlackTitle "FM"]
[WhiteFideId "1704818"]
[BlackFideId "1702440"]
[WhiteElo "2104"]
[BlackElo "2258"]

1. Nf3 {[%clk 00:30:16]} {[%emt 00:00:03]} Nf6 {[%clk 00:30:15]} {[%emt
00:00:05]} 2. c4 {[%clk 00:30:16]} {[%emt 00:00:10]} e6 {[%clk 00:30:19]}
{[%emt 00:00:06]} 3. g3 {[%clk 00:29:49]} {[%emt 00:00:38]} b6 {[%clk
00:29:44]} {[%emt 00:00:45]} 4. Bg2 {[%clk 00:29:56]} {[%emt 00:00:03]} Bb7
{[%clk 00:29:51]} {[%emt 00:00:02]} 5. O-O {[%clk 00:30:02]} {[%emt 00:00:03]}
Be7 {[%clk 00:29:47]} {[%emt 00:00:15]} 6. Nc3 {[%clk 00:29:59]} {[%emt
00:00:14]} O-O {[%clk 00:29:35]} {[%emt 00:00:21]} 7. d4 {[%clk 00:29:44]}
{[%emt 00:00:25]} Ne4 {[%clk 00:28:11]} {[%emt 00:01:34]} 8. Bd2 {[%clk
00:29:27]} {[%emt 00:00:28]} d6 {[%clk 00:25:58]} {[%emt 00:02:23]} 9. d5
{[%clk 00:25:54]} {[%emt 00:03:43]} Nxc3 {[%clk 00:25:05]} {[%emt 00:01:02]} 10.
Bxc3 {[%clk 00:26:02]} {[%emt 00:00:02]} e5 {[%clk 00:24:48]} {[%emt 00:00:27]}
11. Nd2 {[%clk 00:25:13]} {[%emt 00:00:59]} Nd7 {[%clk 00:24:47]} {[%emt
00:00:11]} 12. f4 {[%clk 00:24:31]} {[%emt 00:00:53]} exf4 {[%clk 00:23:14]}
{[%emt 00:01:42]} 13. gxf4 {[%clk 00:24:39]} {[%emt 00:00:02]} Bf6 {[%clk
00:23:02]} {[%emt 00:00:23]} 14. Rc1 {[%clk 00:24:46]} {[%emt 00:00:03]} a5
{[%clk 00:22:59]} {[%emt 00:00:13]} 15. e4 {[%clk 00:23:46]} {[%emt 00:01:10]}
Re8 {[%clk 00:20:53]} {[%emt 00:02:16]} 16. Qh5 {[%clk 00:20:58]} {[%emt
00:02:58]} Bc8 {[%clk 00:15:38]} {[%emt 00:05:25]} 17. e5 {[%clk 00:16:16]}
{[%emt 00:04:52]} dxe5 {[%clk 00:10:48]} {[%emt 00:05:01]} 18. d6 {[%clk
00:16:23]} {[%emt 00:00:02]} Ra7 {[%clk 00:10:43]} {[%emt 00:00:15]} 19. Bd5
{[%clk 00:16:26]} {[%emt 00:00:07]} g6 {[%clk 00:07:30]} {[%emt 00:03:22]} 20.
Qf3 {[%clk 00:04:17]} {[%emt 00:12:20]} Rf8 {[%clk 00:05:53]} {[%emt 00:01:47]}
21. Ne4 {[%clk 00:04:02]} {[%emt 00:00:26]} Bg7 {[%clk 00:04:20]} {[%emt
00:01:42]} 22. f5 {[%clk 00:03:46]} {[%emt 00:00:26]} cxd6 {[%clk 00:03:53]}
{[%emt 00:00:36]} 23. fxg6 {[%clk 00:02:27]} {[%emt 00:01:30]} Nc5 {[%clk
00:03:05]} {[%emt 00:00:57]} 24. gxf7+ {[%clk 00:01:35]} {[%emt 00:01:03]} Kh8
{[%clk 00:03:13]} {[%emt 00:00:02]} 25. Qh5 {[%clk 00:01:41]} {[%emt 00:00:04]}
Nxe4 {[%clk 00:02:15]} {[%emt 00:01:08]} 26. Bxe4 {[%clk 00:01:25]} {[%emt
00:00:26]} h6 {[%clk 00:02:23]} {[%emt 00:00:02]} 27. Bd2 {[%clk 00:01:25]}
{[%emt 00:00:10]} Qd7 {[%clk 00:02:23]} {[%emt 00:00:10]} 28. Bxh6 {[%clk
00:00:25]} {[%emt 00:01:10]} Qg4+ {[%clk 00:02:30]} {[%emt 00:00:02]} 29. Qxg4
{[%clk 00:00:32]} {[%emt 00:00:03]} Bxg4 {[%clk 00:02:39]} {[%emt 00:00:02]} 30.
Be3 {[%clk 00:00:19]} {[%emt 00:00:23]} Rfxf7 {[%clk 00:02:39]} {[%emt
00:00:09]} 31. Rxf7 {[%clk 00:00:18]} {[%emt 00:00:12]} Rxf7 {[%clk 00:02:48]}
32. Bxb6 {[%clk 00:00:25]} {[%emt 00:00:01]} a4 {[%clk 00:02:49]} {[%emt
00:00:11]} 33. Rf1 {[%clk 00:00:27]} {[%emt 00:00:08]} Re7 {[%clk 00:02:01]}
{[%emt 00:00:58]} 34. Be3 {[%clk 00:00:25]} {[%emt 00:00:12]} Be6 {[%clk
00:02:04]} {[%emt 00:00:07]} 35. Rc1 {[%clk 00:00:19]} {[%emt 00:00:16]} Re8
{[%clk 00:02:06]} {[%emt 00:00:08]} 36. Bc6 {[%clk 00:00:24]} {[%emt 00:00:05]}
Rb8 {[%clk 00:02:00]} {[%emt 00:00:16]} 37. Bxa4 {[%clk 00:00:23]} {[%emt
00:00:11]} Rxb2 {[%clk 00:02:08]} {[%emt 00:00:01]} 38. Bb3 {[%clk 00:00:33]}
e4 {[%clk 00:02:12]} {[%emt 00:00:07]} 39. Rd1 {[%clk 00:00:39]} {[%emt
00:00:04]} Be5 {[%clk 00:02:20]} {[%emt 00:00:02]} 40. Rd2 {[%clk 00:00:39]}
{[%emt 00:00:10]} Rb1+ {[%clk 00:01:49]} {[%emt 00:00:41]} 41. Kg2 {[%clk
00:00:39]} {[%emt 00:00:10]} Bg4 {[%clk 00:01:57]} {[%emt 00:00:01]} 42. Bd4
{[%clk 00:00:41]} {[%emt 00:00:08]} Bf3+ {[%clk 00:01:55]} {[%emt 00:00:12]} 43.
Kf2 {[%clk 00:00:44]} {[%emt 00:00:08]} Bxd4+ {[%clk 00:02:00]} {[%emt
00:00:05]} 44. Rxd4 {[%clk 00:00:53]} {[%emt 00:00:01]} Rb2+ {[%clk 00:02:09]}
{[%emt 00:00:01]} 45. Ke3 {[%clk 00:00:57]} {[%emt 00:00:06]} Rxh2 {[%clk
00:02:00]} {[%emt 00:00:19]} 46. Rxd6 {[%clk 00:01:05]} {[%emt 00:00:02]} Kg7
{[%clk 00:01:27]} {[%emt 00:00:43]} 47. c5 {[%clk 00:01:00]} {[%emt 00:00:15]}
Rh1 {[%clk 00:01:19]} {[%emt 00:00:18]} 48. Bd5 {[%clk 00:00:58]} {[%emt
00:00:12]} Re1+ {[%clk 00:00:57]} {[%emt 00:00:31]} 49. Kf4 {[%clk 00:01:07]}
Kf8 {[%clk 00:00:57]} {[%emt 00:00:11]} 50. c6 {[%clk 00:01:08]} {[%emt
00:00:09]} Rc1 {[%clk 00:01:04]} {[%emt 00:00:03]} 51. Bxe4 {[%clk 00:01:06]}
{[%emt 00:00:11]} Bxe4 {[%clk 00:01:02]} {[%emt 00:00:12]} 52. Kxe4 {[%clk
00:01:15]} {[%emt 00:00:02]} Ke7 {[%clk 00:01:12]} 53. Rh6 {[%clk 00:01:16]}
{[%emt 00:00:09]} Kd8 {[%clk 00:01:14]} {[%emt 00:00:07]} 54. Kd5 {[%clk
00:01:17]} {[%emt 00:00:09]} Kc7 {[%clk 00:01:23]} {[%emt 00:00:02]} 55. Rh7+
{[%clk 00:01:23]} {[%emt 00:00:04]} Kc8 {[%clk 00:01:32]} {[%emt 00:00:02]} 56.
a4 {[%clk 00:01:28]} {[%emt 00:00:04]} Ra1 {[%clk 00:01:37]} {[%emt 00:00:04]}
57. Kd6 {[%clk 00:01:36]} {[%emt 00:00:03]} Rd1+ {[%clk 00:01:44]} {[%emt
00:00:03]} 58. Kc5 {[%clk 00:01:45]} {[%emt 00:00:01]} Ra1 {[%clk 00:01:49]}
{[%emt 00:00:05]} 59. a5 {[%clk 00:01:44]} {[%emt 00:00:11]} Rc1+ {[%clk
00:01:46]} {[%emt 00:00:12]} 60. Kb6 {[%clk 00:01:53]} {[%emt 00:00:02]} Rb1+
{[%clk 00:01:55]} 61. Ka6 {[%clk 00:00:19]} {[%emt 00:01:44]} Rc1 {[%clk
00:01:59]} {[%emt 00:00:06]} 62. Kb6 {[%clk 00:00:21]} {[%emt 00:00:08]} Rb1+
{[%clk 00:02:08]} 63. Ka6 {[%clk 00:00:24]} 1/2-1/2

[Event "Vastgota Open 2023"]
[Site "Skara stadshotell, Jarnvagsgatan 5, Skara, Sweden"]
[Date "2023.02.19"]
[Round "7.8"]
[White "Eklund, Lars-Goran"]
[Black "Lind, Jan-Olov"]
[Result "1/2-1/2"]
[TimeControl "15 minutes + 5 seconds per move from move one (Round 1 - 2) / 30 minutes + 10 seconds per move from move one (Round 3 - 9)"]
[WhiteTitle "FM"]
[WhiteFideId "1701010"]
[BlackFideId "1701193"]
[WhiteElo "2196"]
[BlackElo "2096"]

1. Nf3 {[%clk 00:30:19]} {[%emt 00:00:01]} c5 {[%clk 00:24:45]} {[%emt
00:05:36]} 2. c4 {[%clk 00:30:22]} {[%emt 00:00:06]} Nc6 {[%clk 00:24:49]}
{[%emt 00:00:06]} 3. d4 {[%clk 00:30:29]} {[%emt 00:00:03]} cxd4 {[%clk
00:24:56]} {[%emt 00:00:03]} 4. Nxd4 {[%clk 00:30:38]} {[%emt 00:00:01]} g6
{[%clk 00:24:58]} {[%emt 00:00:08]} 5. e4 {[%clk 00:30:19]} {[%emt 00:00:29]}
Bg7 {[%clk 00:25:01]} {[%emt 00:00:06]} 6. Be3 {[%clk 00:30:20]} {[%emt
00:00:10]} Nf6 {[%clk 00:25:06]} {[%emt 00:00:06]} 7. Nc3 {[%clk 00:30:24]}
{[%emt 00:00:05]} O-O {[%clk 00:24:58]} {[%emt 00:00:17]} 8. Be2 {[%clk
00:30:25]} {[%emt 00:00:10]} d6 {[%clk 00:25:04]} {[%emt 00:00:04]} 9. O-O
{[%clk 00:30:15]} {[%emt 00:00:20]} Bd7 {[%clk 00:25:10]} {[%emt 00:00:04]} 10.
Qd2 {[%clk 00:20:47]} {[%emt 00:09:39]} Nxd4 {[%clk 00:24:59]} {[%emt
00:00:20]} 11. Bxd4 {[%clk 00:20:55]} {[%emt 00:00:02]} Bc6 {[%clk 00:25:02]}
{[%emt 00:00:06]} 12. f3 {[%clk 00:21:04]} {[%emt 00:00:02]} a5 {[%clk
00:24:53]} {[%emt 00:00:19]} 13. Rab1 {[%clk 00:21:07]} {[%emt 00:00:07]} Nd7
{[%clk 00:24:27]} {[%emt 00:00:36]} 14. Be3 {[%clk 00:21:15]} {[%emt 00:00:02]}
Nc5 {[%clk 00:23:56]} {[%emt 00:00:40]} 15. Rfd1 {[%clk 00:20:59]} {[%emt
00:00:27]} Be5 {[%clk 00:17:28]} {[%emt 00:06:37]} 16. b3 {[%clk 00:15:43]}
{[%emt 00:05:27]} e6 {[%clk 00:15:26]} {[%emt 00:02:11]} 17. Bd4 {[%clk
00:10:33]} {[%emt 00:05:21]} Qh4 {[%clk 00:10:43]} {[%emt 00:04:53]} 18. Bxe5
{[%clk 00:08:48]} {[%emt 00:01:56]} dxe5 {[%clk 00:10:50]} {[%emt 00:00:02]} 19.
Qe3 {[%clk 00:08:41]} {[%emt 00:00:16]} Qe7 {[%clk 00:09:50]} {[%emt 00:01:10]}
20. a3 {[%clk 00:06:38]} {[%emt 00:02:15]} Na6 {[%clk 00:07:40]} {[%emt
00:02:20]} 21. Nb5 {[%clk 00:05:33]} {[%emt 00:01:15]} Rfd8 {[%clk 00:04:25]}
{[%emt 00:03:25]} 22. Kf1 {[%clk 00:02:23]} {[%emt 00:03:20]} Rxd1+ {[%clk
00:03:28]} {[%emt 00:01:06]} 23. Rxd1 {[%clk 00:02:29]} {[%emt 00:00:04]} Rd8
{[%clk 00:02:59]} {[%emt 00:00:39]} 24. Qc3 {[%clk 00:02:06]} {[%emt 00:00:33]}
Rxd1+ {[%clk 00:02:41]} {[%emt 00:00:28]} 25. Bxd1 {[%clk 00:02:15]} {[%emt
00:00:01]} Qd8 {[%clk 00:01:49]} {[%emt 00:01:02]} 26. Be2 {[%clk 00:02:06]}
{[%emt 00:00:19]} f6 {[%clk 00:01:53]} {[%emt 00:00:07]} 27. Qe3 {[%clk
00:01:16]} {[%emt 00:00:59]} b6 {[%clk 00:01:25]} {[%emt 00:00:38]} 28. Ke1
{[%clk 00:00:42]} {[%emt 00:00:44]} Bxb5 {[%clk 00:01:30]} {[%emt 00:00:05]} 29.
cxb5 {[%clk 00:00:50]} {[%emt 00:00:02]} Nc5 {[%clk 00:01:34]} {[%emt
00:00:06]} 30. Bc4 {[%clk 00:00:58]} {[%emt 00:00:02]} Qd6 {[%clk 00:01:01]}
{[%emt 00:00:44]} 31. Qd2 {[%clk 00:00:39]} {[%emt 00:00:29]} Qxd2+ {[%clk
00:00:59]} {[%emt 00:00:11]} 32. Kxd2 {[%clk 00:00:48]} {[%emt 00:00:01]} Kf7
{[%clk 00:01:08]} 1/2-1/2

[Event "Vastgota Open 2023"]
[Site "Skara stadshotell, Jarnvagsgatan 5, Skara, Sweden"]
[Date "2023.02.19"]
[Round "7.9"]
[White "Bjorklund, Thomas"]
[Black "Miezis, Normunds"]
[Result "0-1"]
[TimeControl "15 minutes + 5 seconds per move from move one (Round 1 - 2) / 30 minutes + 10 seconds per move from move one (Round 3 - 9)"]
[BlackTitle "GM"]
[WhiteFideId "1724576"]
[BlackFideId "11600136"]
[WhiteElo "2108"]
[BlackElo "2502"]

1. e4 {[%clk 00:30:18]} {[%emt 00:00:01]} c5 {[%clk 00:30:15]} {[%emt
00:00:04]} 2. Nf3 {[%clk 00:30:23]} {[%emt 00:00:05]} e6 {[%clk 00:30:20]}
{[%emt 00:00:05]} 3. c3 {[%clk 00:30:31]} {[%emt 00:00:03]} d5 {[%clk
00:30:12]} {[%emt 00:00:18]} 4. exd5 {[%clk 00:30:36]} {[%emt 00:00:05]} exd5
{[%clk 00:30:10]} {[%emt 00:00:12]} 5. d4 {[%clk 00:30:42]} {[%emt 00:00:04]}
Nc6 {[%clk 00:29:47]} {[%emt 00:00:33]} 6. Be2 {[%clk 00:30:16]} {[%emt
00:00:36]} Bd6 {[%clk 00:29:16]} {[%emt 00:00:41]} 7. dxc5 {[%clk 00:30:01]}
{[%emt 00:00:25]} Bxc5 {[%clk 00:29:21]} {[%emt 00:00:04]} 8. O-O {[%clk
00:30:02]} {[%emt 00:00:10]} Nf6 {[%clk 00:29:22]} {[%emt 00:00:08]} 9. Bg5
{[%clk 00:30:05]} {[%emt 00:00:08]} Be6 {[%clk 00:29:06]} {[%emt 00:00:26]} 10.
Nbd2 {[%clk 00:30:09]} {[%emt 00:00:06]} h6 {[%clk 00:28:35]} {[%emt 00:00:41]}
11. Bh4 {[%clk 00:29:23]} {[%emt 00:00:57]} O-O {[%clk 00:27:57]} {[%emt
00:00:47]} 12. Nb3 {[%clk 00:29:23]} {[%emt 00:00:10]} Bb6 {[%clk 00:27:45]}
{[%emt 00:00:21]} 13. Nbd4 {[%clk 00:29:26]} {[%emt 00:00:08]} Bg4 {[%clk
00:27:03]} {[%emt 00:00:52]} 14. Re1 {[%clk 00:27:13]} {[%emt 00:02:23]} Re8
{[%clk 00:26:49]} {[%emt 00:00:24]} 15. Qa4 {[%clk 00:26:02]} {[%emt 00:01:21]}
Re4 {[%clk 00:20:29]} {[%emt 00:06:29]} 16. Nxc6 {[%clk 00:22:31]} {[%emt
00:03:42]} bxc6 {[%clk 00:18:19]} {[%emt 00:02:20]} 17. Qxc6 {[%clk 00:22:15]}
{[%emt 00:00:26]} Bxf3 {[%clk 00:08:05]} {[%emt 00:10:24]} 18. Bxf6 {[%clk
00:21:59]} {[%emt 00:00:26]} Qe8 {[%clk 00:08:11]} {[%emt 00:00:03]} 19. Qxe8+
{[%clk 00:20:16]} {[%emt 00:01:54]} Raxe8 {[%clk 00:08:18]} {[%emt 00:00:03]}
20. gxf3 {[%clk 00:19:35]} {[%emt 00:00:51]} Rxe2 {[%clk 00:08:24]} {[%emt
00:00:04]} 21. Rxe2 {[%clk 00:18:37]} {[%emt 00:01:09]} Rxe2 {[%clk 00:08:29]}
{[%emt 00:00:04]} 22. Bh4 {[%clk 00:18:19]} {[%emt 00:00:27]} g5 {[%clk
00:07:45]} {[%emt 00:00:54]} 23. Bg3 {[%clk 00:18:14]} {[%emt 00:00:15]} f5
{[%clk 00:07:41]} {[%emt 00:00:15]} 0-1